[Event "5th Baskent University Open 2022"]
[Site "Ankara"]
[Date "2022.07.03"]
[Round "2.9"]
[White "Akbas, Umut Ata"]
[Black "Ozturk, Efe Hakan"]
[Result "1-0"]
[ECO "B00"]
[WhiteElo "2298"]
[BlackElo "2115"]
[Annotator "TA"]
[PlyCount "53"]
[EventDate "2022.07.02"]
[EventType "swiss"]
[EventCountry "TUR"]
[SourceTitle "playchess.com"]
[Source "ChessBase"]
[SourceQuality "1"]
[TimeControl "5400+30"]

{[%evp 9,53,30,27,18,25,10,15,5,56,62,28,23,6,15,134,100,381,366,360,272,263,255,175,129,507,183,1329,307,488,492,527,520,528,485,499,510,491,477,553,502,800,799,772,762,1223,1183]} 1. e4 {[%emt 0:01:00]} b6 {[%emt 0:03:00]} 2. d4 {[%emt 0:00:30]} Bb7 {[%emt 0:00:00]} 3. Bd3 {[%emt 0:00:30]} Nf6 {[%emt 0:01:00]} 4. Qe2 {[%emt 0:00:00]} e6 {[%emt 0:08:30]} 5. Nd2 {[%emt 0:07:00]} d5 {[%emt 0:09:30]} 6. e5 {[%emt 0:03:30] B00: Queen's Fianchetto Defence, Nimzowitsch Defence.} Nfd7 {[%emt 0:00:30]} 7. Ngf3 {[%emt 0:00:00]} Be7 {[%emt 0:04:30]} 8. O-O {[%emt 0:02:00] The position is equal.} Qc8 {[%emt 0:07:30]} (8... c5 $11) 9. c4 $14 {[%emt 0:05:30]} c5 {[%emt 0:07:30] [#]} 10. cxd5 $146 {[%emt 0:05:30]} ({Predecessor:} 10. Rd1 O-O 11. b3 cxd4 12. Bb2 dxc4 13. Nxc4 Nc5 14. Nxd4 Nxd3 15. Rxd3 Nc6 16. Nb5 {1-0 (29) Perez Candelario,M (2586)-Garcia Galeote,L (1992) La Roda 2018}) 10... Bxd5 {[%emt 0:01:30]} 11. Ne4 {[%emt 0:00:00] Hoping for Bg5.} cxd4 {[%emt 0:09:30] [#]} (11... O-O $1 $11 {remains equal.}) 12. Bg5 $1 $16 {[%emt 0:04:00] Strongly threatening Bxe7. White is more active.} f6 $2 {[%emt 0:03:30][%mdl 8192]} (12... Nc6 $16) 13. exf6 $18 {[%emt 0:02:30]} gxf6 {[%emt 0:00:00]} 14. Nxd4 {[%emt 0:09:30]} fxg5 {[%emt 0:10:00]} 15. Qh5+ $40 {[%emt 0:00:30][%mdl 128] Black is in trouble.} Kd8 {[%emt 0:06:30] ...Nc6 is the strong threat.} 16. Nxg5 {[%emt 0:00:30]} ({Better is} 16. Rac1 $18 Nc5 17. b4 Nxd3 18. Rxc8+ Kxc8 19. Qf7 Bxb4 {[#]} 20. Nxe6 $1) 16... Nf6 $2 {[%emt 0:05:30][%mdl 8192] This costs Black the game.} (16... Nc5 $16 {is more resistant.}) 17. Qf7 $2 {[%emt 0:04:30]} (17. Qh3) 17... Kd7 $2 {[%emt 0:10:36]} (17... Nc6 18. Ndxe6+ (18. Ngxe6+ Kd7 $16) 18... Kd7) 18. Rfe1 $2 {[%emt 0:07:30]} (18. Bb5+ Kd6 19. Rac1 Qxc1 20. Rxc1) 18... Qf8 {[%emt 0:06:42]} (18... Rf8 {might work better.} 19. Bb5+ Nc6 20. Bxc6+ Qxc6 21. Nxc6 Rxf7) 19. Bb5+ {[%emt 0:00:30] White is clearly winning.} Kc8 {[%emt 0:01:08]} 20. Rac1+ {[%emt 0:00:30]} Bc5 {[%emt 0:01:12]} 21. Ndxe6 {[%emt 0:03:30][%csl Ge6][%cal Rf7c7]} Qxf7 {[%emt 0:00:30]} 22. Nxf7 {[%emt 0:00:00][%cal Rf7d6]} Bxe6 {[%emt 0:02:02]} 23. Rxe6 {[%emt 0:00:00]} ({Less strong is} 23. Nxh8 Bd7 $16) 23... Rf8 {[%emt 0:00:45]} 24. Rxf6 {[%emt 0:00:30] aiming for Nd6+.} Kb7 {[%emt 0:00:27] [#]} (24... Nd7 $142 25. Rc6+ Kb7 26. Nd6+ Bxd6 27. Rxd6 Ne5) 25. Rxc5 $1 {[%emt 0:00:30]} bxc5 {[%emt 0:00:14]} 26. Nd6+ {[%emt 0:00:30]} Kb6 {[%emt 0:00:30]} 27. Rxf8 {[%emt 0:00:00] Weighted Error Value: White=0.62/Black=1.10} 1-0

[Event "5th Baskent University Open 2022"]
[Site "Ankara"]
[Date "2022.07.03"]
[Round "2.11"]
[White "Zor, Alber Kadir"]
[Black "Ozsoy, Alimert"]
[Result "1-0"]
[ECO "A07"]
[WhiteElo "2116"]
[BlackElo "2263"]
[Annotator "TA"]
[PlyCount "71"]
[EventDate "2022.07.02"]
[EventType "swiss"]
[EventCountry "TUR"]
[SourceTitle "playchess.com"]
[Source "ChessBase"]
[SourceQuality "1"]
[TimeControl "5400+30"]

{[%evp 10,71,18,0,0,0,8,0,29,25,52,42,56,64,60,60,62,66,66,40,45,24,95,60,95,91,105,92,139,144,136,147,133,138,138,133,151,146,187,186,174,175,212,232,204,155,279,271,300,293,272,202,479,473,472,446,716,701,681,647,1368,1295,1811,1669]} 1. Nf3 {[%emt 0:01:00]} d5 {[%emt 0:03:00]} 2. g3 {[%emt 0:00:00]} Nf6 {[%emt 0:01:30]} 3. Bg2 {[%emt 0:00:00]} c6 {[%emt 0:00:30]} 4. O-O {[%emt 0:00:00]} Bg4 {[%emt 0:00:00]} 5. h3 {[%emt 0:00:00]} Bxf3 {[%emt 0:00:00]} 6. Bxf3 {[%emt 0:00:30]} e5 {[%emt 0:00:30] A07: Réti Opening: New York and Capablanca Systems.} 7. d3 {[%emt 0:00:30]} Bc5 {[%emt 0:02:30] now supersedes 7...Nbd7.} 8. e4 {[%emt 0:03:30]} dxe4 {[%emt 0:01:30] The position is equal.} 9. dxe4 {[%emt 0:00:00]} Qxd1 {[%emt 0:01:30]} 10. Rxd1 {[%emt 0:00:00]} Nbd7 {[%emt 0:00:00]} 11. Nd2 {[%emt 0:06:30]} O-O-O {[%emt 0:02:00] [#]} 12. a4 $146 {[%emt 0:07:30]} ({Predecessor:} 12. Nc4 Rhe8 13. a4 Nb6 14. Rxd8+ Kxd8 15. Nd2 Kc7 16. a5 Nc8 17. Nb3 Be7 18. Be3 {½-½ (82) Grandelius,N (2681)-Postny,E (2615) Germany 2019}) 12... Nf8 {[%emt 0:07:30]} 13. Re1 {[%emt 0:01:30]} Ne6 {[%emt 0:04:30]} 14. Nb3 {[%emt 0:01:30]} Be7 {[%emt 0:18:30]} 15. Be3 {[%emt 0:03:30]} c5 {[%emt 0:03:30]} (15... Kb8 $11) 16. c3 {[%emt 0:03:30] Black is now going downhill.} Kb8 {[%emt 0:08:30]} 17. Nd2 {[%emt 0:05:30]} Nd7 {[%emt 0:06:30]} 18. Bg4 {[%emt 0:05:30]} Ndf8 {[%emt 0:07:30]} ({Better is} 18... Bg5) 19. Nc4 $16 {[%emt 0:01:30]} f6 {[%emt 0:00:30]} 20. Rad1 {[%emt 0:00:30]} Rxd1 {[%emt 0:01:30]} 21. Rxd1 {[%emt 0:02:30]} h5 {[%emt 0:02:30]} 22. Be2 {[%emt 0:02:30] 0x0.001764b5ff29dp-1022s more active pieces.} h4 {[%emt 0:04:30]} 23. Bg4 {[%emt 0:00:30]} g6 {[%emt 0:02:30] [#]} 24. f4 $1 {[%emt 0:09:30]} Ng7 {[%emt 0:05:19]} 25. Nd6 {[%emt 0:18:30] Black must now prevent Nc8.} (25. fxe5 f5 $16) 25... Bxd6 {[%emt 0:03:54]} 26. Rxd6 {[%emt 0:00:00] Threatening mate with Rd8+.} f5 {[%emt 0:00:57]} 27. Bf3 {[%emt 0:01:00]} (27. Bxc5 $6 Nfe6 $16) 27... Nfe6 {[%emt 0:02:55] [#]} (27... hxg3 $16 28. fxe5 Nfe6) 28. exf5 $1 $18 {[%emt 0:15:03]} ({Don't do} 28. fxe5 $6 hxg3 29. exf5 Nxf5 $16) 28... gxf5 {[%emt 0:00:20]} 29. fxe5 {[%emt 0:00:00]} hxg3 {[%emt 0:03:45]} 30. Rd7 {[%emt 0:00:00]} Rd8 $2 {[%emt 0:04:17]} (30... Rxh3 {might work better.} 31. Rxb7+ Kc8) 31. Rxd8+ {[%emt 0:04:50] White is clearly winning.} ({Less strong is} 31. Rxb7+ Kc8 $18) 31... Nxd8 {[%emt 0:00:08]} 32. Kg2 {[%emt 0:00:22]} Nde6 {[%emt 0:01:18]} (32... Nge6 $142 33. Kxg3 Kc7) 33. Kxg3 {[%emt 0:00:15]} Kc7 {[%emt 0:00:30]} 34. h4 {[%emt 0:04:50][%cal Bh3h4,Bh4h5][%mdl 32]} b6 {[%emt 0:01:28]} 35. h5 {[%emt 0:00:12]} Nf8 {[%emt 0:00:14]} 36. Bh6 {[%emt 0:00:37] Weighted Error Value: White=0.08 (flawless) /Black=0.34} 1-0

[Event "5th Baskent University Open 2022"]
[Site "Ankara"]
[Date "2022.07.03"]
[Round "2.12"]
[White "Citak, Selim"]
[Black "Unver, Cumali"]
[Result "1-0"]
[ECO "D92"]
[WhiteElo "2176"]
[BlackElo "2046"]
[Annotator "RC"]
[PlyCount "101"]
[EventDate "2022.07.02"]
[EventType "swiss"]
[EventCountry "TUR"]
[SourceTitle "playchess.com"]
[Source "ChessBase"]
[SourceQuality "1"]
[TimeControl "5400+30"]

1. d4 {[%emt 0:01:00]} Nf6 {[%emt 0:01:00]} 2. c4 {[%emt 0:00:00]} g6 {[%emt 0:01:30]} 3. Nc3 {[%emt 0:00:00]} d5 {[%emt 0:00:30]} 4. Nf3 {[%emt 0:01:30]} Bg7 {[%emt 0:00:30]} 5. Bf4 {[%emt 0:00:30]} O-O {[%emt 0:03:30]} 6. Rc1 {[%emt 0:00:30]} dxc4 {[%emt 0:10:30]} 7. e3 {[%emt 0:00:30]} Be6 {[%emt 0:01:30]} 8. Ng5 {[%emt 0:00:30]} Bg4 {[%emt 0:02:30]} 9. f3 {[%emt 0:13:30]} Bd7 {[%emt 0:06:30]} 10. Bxc4 {[%emt 0:02:30]} e6 {[%emt 0:07:30]} 11. Nge4 {[%emt 0:04:30]} Bc6 {[%emt 0:02:30]} 12. Bg5 {[%emt 0:09:30]} Nbd7 {[%emt 0:00:30]} 13. O-O {[%emt 0:00:00]} h6 {[%emt 0:00:30]} 14. Bh4 {[%emt 0:02:00]} Rc8 {[%emt 0:05:30]} 15. Qe2 {[%emt 0:01:30]} Nb6 {[%emt 0:01:30]} 16. Bb5 {[%emt 0:05:30]} Bxb5 {[%emt 0:04:30]} 17. Qxb5 {[%emt 0:01:30]} a6 {[%emt 0:01:30]} 18. Qb3 {[%emt 0:00:30]} g5 {[%emt 0:00:30]} 19. Bg3 {[%emt 0:01:30]} Nxe4 {[%emt 0:11:30]} 20. fxe4 {[%emt 0:01:30]} c5 {[%emt 0:00:30]} 21. dxc5 {[%emt 0:01:30]} Nd7 {[%emt 0:23:16]} 22. Rfd1 {[%emt 0:02:30]} Qe8 {[%emt 0:01:35]} 23. Bd6 {[%emt 0:11:30]} Nxc5 {[%emt 0:02:53]} 24. Qb4 {[%emt 0:00:30]} Qc6 {[%emt 0:02:51]} 25. Bxf8 {[%emt 0:00:30]} Bxf8 {[%emt 0:00:20]} 26. Qd4 {[%emt 0:05:30]} Qe8 {[%emt 0:01:41]} 27. e5 {[%emt 0:01:30]} Be7 {[%emt 0:01:23]} 28. Ne4 {[%emt 0:03:30]} Nxe4 {[%emt 0:01:26]} 29. Rxc8 {[%emt 0:00:30]} Qxc8 {[%emt 0:00:30]} 30. Qxe4 {[%emt 0:00:00]} Qc7 {[%emt 0:01:47]} 31. Rf1 {[%emt 0:01:00]} Bf8 {[%emt 0:00:44]} 32. Qd4 {[%emt 0:02:30]} Bg7 {[%emt 0:01:05]} 33. Qd6 {[%emt 0:00:30]} Bxe5 {[%emt 0:02:25]} 34. Qxc7 {[%emt 0:00:30]} Bxc7 {[%emt 0:00:00]} 35. Rc1 {[%emt 0:04:30]} Bd6 {[%emt 0:00:00]} 36. Rc8+ {[%emt 0:01:30]} Kg7 {[%emt 0:00:00]} 37. Ra8 {[%emt 0:01:30]} Bc5 {[%emt 0:00:05]} 38. Kf2 {[%emt 0:00:30]} f5 {[%emt 0:00:27]} 39. Ke2 {[%emt 0:01:30]} Kg6 {[%emt 0:02:23]} 40. a3 {[%emt 0:00:30]} g4 {[%emt 0:00:00]} 41. b4 {[%emt 0:01:25]} Bd6 {[%emt 0:00:00]} 42. Ra7 {[%emt 0:01:14]} Bxh2 {[%emt 0:01:10]} 43. Rxb7 {[%emt 0:00:05]} e5 {[%emt 0:00:53]} 44. a4 {[%emt 0:02:08]} f4 {[%emt 0:00:25]} 45. exf4 {[%emt 0:02:58]} exf4 {[%emt 0:00:02]} 46. b5 {[%emt 0:01:57]} axb5 {[%emt 0:00:40]} 47. a5 {[%emt 0:00:16]} Bg1 {[%emt 0:00:20]} 48. a6 {[%emt 0:00:30]} Kg5 {[%emt 0:00:30]} 49. a7 {[%emt 0:00:30]} Bxa7 {[%emt 0:00:30]} 50. Rxa7 {[%emt 0:00:30]} Kh4 {[%emt 0:00:30]} 51. Kf2 {[%emt 0:00:00]} 1-0

[Event "5th Baskent University Open 2022"]
[Site "Ankara"]
[Date "2022.07.03"]
[Round "2.13"]
[White "Eynullayev, Atilla"]
[Black "Cakiroglu, Metin"]
[Result "1-0"]
[ECO "A52"]
[WhiteElo "2333"]
[BlackElo "2068"]
[Annotator "TA"]
[PlyCount "75"]
[EventDate "2022.07.02"]
[EventType "swiss"]
[EventCountry "TUR"]
[SourceTitle "playchess.com"]
[Source "ChessBase"]
[SourceQuality "1"]
[TimeControl "5400+30"]

{[%evp 17,75,22,35,25,47,45,42,42,52,43,54,45,58,59,65,64,64,54,68,30,43,28,58,58,120,110,100,70,64,56,101,102,112,94,71,81,178,139,339,350,462,461,454,438,437,436,601,570,562,561,644,632,660,568,715,710,687,683,660,643]} 1. d4 {[%emt 0:01:00]} Nf6 {[%emt 0:01:00]} 2. c4 {[%emt 0:00:00]} e5 {[%emt 0:02:30]} 3. dxe5 {[%emt 0:00:00]} Ng4 {[%emt 0:00:00]} 4. Nf3 {[%emt 0:02:30]} Bc5 {[%emt 0:00:00]} 5. e3 {[%emt 0:00:30]} Nc6 {[%emt 0:00:30]} 6. Be2 {[%emt 0:00:30]} Ngxe5 {[%emt 0:00:00]} 7. Nc3 {[%emt 0:01:30]} O-O {[%emt 0:00:00]} 8. O-O {[%emt 0:01:30]} a5 {[%emt 0:03:30]} 9. Nxe5 {[%emt 0:05:30]} Nxe5 {[%emt 0:02:30]} 10. Ne4 {[%emt 0:00:30] A52: Budapest Gambit.} Be7 {[%emt 0:01:30] [#]} 11. f4 $146 {[%emt 0:01:30]} ({Predecessor:} 11. Bd2 d5 12. cxd5 Qxd5 13. Ng3 Be6 14. Bc3 Qxd1 15. Rfxd1 f6 16. Rdc1 c6 17. Bd4 {1-0 (49) Guggenheim,H (1866)-Klimek,P (1826) Prague 2021}) 11... Nc6 {[%emt 0:01:30]} 12. b3 {[%emt 0:05:30] White is slightly better.} f5 {[%emt 0:00:30]} 13. Nc3 {[%emt 0:08:30]} Bf6 {[%emt 0:00:30]} 14. Bb2 {[%emt 0:00:30]} d6 {[%emt 0:00:30]} 15. Qd2 {[%emt 0:03:30]} Be6 {[%emt 0:14:30]} 16. Bf3 {[%emt 0:01:30]} Qd7 {[%emt 0:01:30]} 17. Rae1 {[%emt 0:05:30]} Rae8 {[%emt 0:00:30]} 18. Kh1 {[%emt 0:03:30]} Kh8 {[%emt 0:01:30]} 19. h3 {[%emt 0:08:30]} Bh4 {[%emt 0:08:30]} 20. Re2 {[%emt 0:00:30]} Rf6 {[%emt 0:00:30]} (20... Bf6 $14) 21. Rg1 {[%emt 0:13:30] aiming for g3.} Rh6 {[%emt 0:01:30]} 22. g3 {[%emt 0:01:30]} Bf6 {[%emt 0:01:30]} 23. Rh2 {[%emt 0:00:00]} Ne7 {[%emt 0:04:30][%cal Od6d5] [#]} 24. g4 $1 {[%emt 0:09:00] White is more active.} (24. Bxb7 c6 25. Ba6 Ra8 $19) 24... fxg4 {[%emt 0:00:30]} 25. hxg4 {[%emt 0:00:30] Strongly threatening Rxh6.} Rxh2+ {[%emt 0:00:30]} 26. Kxh2 {[%emt 0:01:30]} d5 {[%emt 0:05:30]} (26... h6 $16) 27. cxd5 $18 {[%emt 0:05:59]} ({Don't play} 27. g5 $6 Bxc3 28. Qxc3 Nf5) 27... Nxd5 $2 {[%emt 0:02:30] Black cannot hold the game after this.} (27... Bxc3 $16 {was necessary.} 28. Bxc3 (28. Qxc3 Nxd5 29. Qd4 Nb4 $16) 28... Nxd5) 28. Nxd5 {[%emt 0:01:02]} ({Less strong is} 28. Bxd5 Bxd5 29. Qxd5 (29. Nxd5 Bxb2 30. Qxb2 Qxd5 $11) 29... Qxd5 30. Nxd5 Bxb2 $14) 28... Bxb2 {[%emt 0:01:30]} 29. Qxb2 {[%emt 0:00:24] White is clearly winning.} Bxd5 {[%emt 0:00:30] [#]} 30. Rd1 $1 {[%emt 0:01:05]} c6 {[%emt 0:01:30]} 31. e4 {[%emt 0:01:44]} Rxe4 {[%emt 0:01:30]} 32. Bxe4 {[%emt 0:00:30][%mdl 64] Pin} Qxg4 {[%emt 0:00:00] [#]} 33. Qd2 {[%emt 0:02:48]} Qh4+ {[%emt 0:01:00]} (33... Be6 34. Re1) 34. Kg1 {[%emt 0:00:03]} Qg3+ {[%emt 0:00:30]} 35. Bg2 {[%emt 0:00:13]} h5 {[%emt 0:00:30]} 36. Qf2 {[%emt 0:00:54]} Qg4 {[%emt 0:00:00]} 37. Rd3 {[%emt 0:00:37]} h4 {[%emt 0:00:00]} 38. Rh3 {[%emt 0:00:44] Weighted Error Value: White=0.09 (flawless) /Black=0.40} 1-0

[Event "5th Baskent University Open 2022"]
[Site "Ankara"]
[Date "2022.07.03"]
[Round "2.14"]
[White "Cevizci, Yusuf Baran"]
[Black "Sevgi, Volkan"]
[Result "0-1"]
[ECO "B15"]
[WhiteElo "2144"]
[BlackElo "2305"]
[Annotator "TA"]
[PlyCount "116"]
[EventDate "2022.07.02"]
[EventType "swiss"]
[EventCountry "TUR"]
[SourceTitle "playchess.com"]
[Source "ChessBase"]
[SourceQuality "1"]
[TimeControl "5400+30"]

{[%evp 13,116,67,76,69,68,70,99,99,106,99,99,104,118,94,108,128,120,83,106,76,84,73,77,50,87,79,93,44,75,31,42,-28,-8,-42,-29,-29,-37,-44,-53,-41,-46,-91,-90,-115,-104,-106,-106,-104,-103,-103,-100,-158,-143,-165,-93,-93,-69,-72,-69,-72,-69,-69,-63,-69,-61,-59,-63,-55,-34,-44,-7,-42,-18,-32,-30,-52,-52,-68,-68,-154,-154,-127,-119,-136,-130,-556,-136,-122,-70,-49,-49,-29981,-29982,-29982,-29976,-29976,-29977,-29977,-29976,-29981,-29977,-29973,-29974,-29981,-29979]} 1. e4 {[%emt 0:01:00]} c6 {[%emt 0:01:00]} 2. d4 {[%emt 0:00:30]} d5 {[%emt 0:00:30]} 3. Nc3 {[%emt 0:00:30]} g6 {[%emt 0:01:30]} 4. h3 {[%emt 0:01:30]} Bg7 {[%emt 0:01:30]} 5. Nf3 {[%emt 0:01:30]} Nh6 {[%emt 0:02:30][%cal Bg8h6,Bh6f5,Bf5d6][%mdl 32]} 6. Bf4 {[%emt 0:03:30]} dxe4 {[%emt 0:01:30]} 7. Nxe4 {[%emt 0:00:30]} Nf5 {[%emt 0:00:30][%cal Rf5d4]} 8. c3 {[%emt 0:00:30] B15: Caro-Kann: 3 Nc3: 3...g6 and 3...dxe4 4 Nxe4 Nf6 5 Nxf6+ exf6.} O-O {[%emt 0:00:30]} 9. Bd3 {[%emt 0:03:30]} b6 {[%emt 0:01:30]} 10. O-O {[%emt 0:00:30] White is better.} Nd6 {[%emt 0:05:30]} 11. Re1 {[%emt 0:01:30] [#]} a5 $146 {[%emt 0:05:30]} ({Predecessor:} 11... Bb7 12. Qe2 Nxe4 13. Qxe4 e6 14. Be5 Nd7 15. Bxg7 Kxg7 16. Rad1 Qc7 17. Qe2 Rad8 18. Ne5 {½-½ (48) Miturova,M (2139)-Piankov,E (2338) Olomouc 2012}) 12. Bg5 {[%emt 0:10:30] Threatens to win with Nxd6.} Be6 {[%emt 0:04:30]} 13. Qe2 {[%emt 0:01:30]} Ra7 {[%emt 0:05:30]} 14. Nxd6 {[%emt 0:05:30]} Qxd6 {[%emt 0:00:30]} 15. Bh4 {[%emt 0:00:00]} b5 {[%emt 0:11:30]} 16. Ng5 {[%emt 0:03:00]} Bd5 {[%emt 0:00:30]} 17. Ne4 {[%emt 0:00:30]} Bxe4 {[%emt 0:09:30]} 18. Qxe4 {[%emt 0:00:30][%cal Rh4e7]} Bf6 {[%emt 0:00:00]} 19. Bg3 {[%emt 0:00:30]} Qd7 {[%emt 0:00:00]} 20. Rad1 {[%emt 0:01:30]} ({White should try} 20. Qf3 $16) 20... Na6 $14 {[%emt 0:00:30]} 21. Qe2 {[%emt 0:00:30][%cal Oa2a4]} Nc7 {[%emt 0:01:30]} 22. Bxc7 {[%emt 0:01:30]} ({White should play} 22. a4 $14) 22... Qxc7 {[%emt 0:02:30]} 23. d5 {[%emt 0:00:30]} cxd5 {[%emt 0:02:30]} 24. Bxb5 {[%emt 0:00:30]} Rd8 {[%emt 0:01:30]} 25. c4 {[%emt 0:10:30]} d4 {[%emt 0:00:30]} 26. Qf3 {[%emt 0:00:30]} Rb7 {[%emt 0:04:30][%cal Ba7b7,Bb7b6,Bb6e6][%mdl 32]} 27. b3 {[%emt 0:00:30]} Rb6 {[%emt 0:00:00]} 28. Rd3 {[%emt 0:01:30]} Qc5 {[%emt 0:01:00]} 29. Qe2 {[%emt 0:05:30]} e5 {[%emt 0:00:30][%cal Oe5e4]} 30. Qd2 {[%emt 0:00:30]} Re6 {[%emt 0:01:30] ...e4 is the strong threat.} 31. Re4 {[%emt 0:04:30]} Qc7 {[%emt 0:11:30]} 32. g4 {[%emt 0:05:30]} (32. f4 $142) 32... Bg7 $1 $17 {[%emt 0:02:30]} 33. Rf3 {[%emt 0:00:30] Against f5} h6 {[%emt 0:04:27]} (33... f5 $1 $19 {[%cal Rf5e4]} 34. gxf5 Rf6) 34. Qd3 {[%emt 0:03:30]} Qe7 {[%emt 0:00:58]} 35. c5 {[%emt 0:03:30]} Qxc5 {[%emt 0:00:57]} 36. Bc4 {[%emt 0:00:00]} Re7 {[%emt 0:00:03]} 37. h4 {[%emt 0:03:00]} Qc6 {[%emt 0:06:25]} 38. h5 {[%emt 0:02:30]} Rd6 {[%emt 0:00:30]} 39. hxg6 {[%emt 0:00:30]} Rxg6 {[%emt 0:00:30]} 40. Rf5 {[%emt 0:00:30]} Qd7 {[%emt 0:00:30] Strongly threatening ...Qxf5.} 41. Qf3 {[%emt 0:00:30]} Kf8 {[%emt 0:00:30]} 42. a4 {[%emt 0:02:30]} Rd6 {[%emt 0:04:17]} 43. Qd3 {[%emt 0:00:30]} Rf6 {[%emt 0:01:28]} 44. Rxf6 {[%emt 0:04:30]} Bxf6 {[%emt 0:00:06][%cal Bg7f6,Bf6g5,Bg5f4][%mdl 32]} 45. Bb5 {[%emt 0:00:30]} ({Much worse is} 45. Qd2 Bg5 46. Qd3 (46. Qxa5 $2 d3 $19) 46... Bf4 $17) 45... Qc8 {[%emt 0:00:38]} 46. Qd2 {[%emt 0:00:37]} (46. Ba6 $15 Qc1+ 47. Kg2) 46... Bg5 {[%emt 0:01:05]} 47. Qxa5 {[%emt 0:00:30]} Bf4 {[%emt 0:00:00]} 48. Kf1 {[%emt 0:02:38]} Kg7 $1 {[%emt 0:01:00]} 49. f3 {[%emt 0:00:29][%mdl 8192]} (49. Qb4 $17 {nothing else works.} Qe6 50. Rxf4 exf4 51. Qxd4+ f6 52. Qxf4) 49... Rc7 $2 {[%emt 0:04:13]} (49... Qc2 $19 50. Qb4 Bg5) 50. Bc4 {[%emt 0:00:30][%cal Oe4f4] [#]} Rxc4 {[%emt 0:00:00]} ({Better is} 50... Rc5 $1 $17 {[%cal Rc5a5]} 51. Qe1 Qd8) 51. bxc4 $15 {[%emt 0:00:23]} Qxc4+ $17 {[%emt 0:00:00][%mdl 4096] Endgame KQR-KQB} 52. Kg2 $2 {[%emt 0:00:00][%mdl 8192] [#]} (52. Kg1 $15) 52... Qc2+ $1 {[%emt 0:00:20] Black mates.} 53. Kf1 {[%emt 0:00:00]} d3 {[%emt 0:00:30]} 54. Rxf4 {[%emt 0:00:11]} Qe2+ {[%emt 0:00:30]} ({Weaker is} 54... exf4 55. Qe5+ f6 56. Qe7+ Kg8 57. Qd8+ Kh7 58. Qe7+ Kg8 59. Qd8+ Kh7 60. Qe7+ Kg8 $11) 55. Kg1 {[%emt 0:00:30]} Qe3+ {[%emt 0:00:30]} 56. Kf1 {[%emt 0:00:30]} exf4 {[%emt 0:01:19]} 57. Qc3+ {[%emt 0:00:00]} Kh7 {[%emt 0:01:06]} 58. Qf6 {[%emt 0:00:12]} Qxf3+ {[%emt 0:00:30] Weighted Error Value: White=0.38/Black=0.22 (precise)} 0-1

[Event "5th Baskent University Open 2022"]
[Site "Ankara"]
[Date "2022.07.03"]
[Round "2.15"]
[White "Tarhan, Adar"]
[Black "Maruflu, Enes Yusuf"]
[Result "1-0"]
[ECO "B42"]
[WhiteElo "2201"]
[BlackElo "2046"]
[Annotator "RC"]
[PlyCount "93"]
[EventDate "2022.07.02"]
[EventType "swiss"]
[EventCountry "TUR"]
[SourceTitle "playchess.com"]
[Source "ChessBase"]
[SourceQuality "1"]
[TimeControl "5400+30"]

1. e4 {[%emt 0:01:00]} c5 {[%emt 0:05:00]} 2. Nf3 {[%emt 0:00:30]} e6 {[%emt 0:00:30]} 3. d4 {[%emt 0:00:00]} cxd4 {[%emt 0:00:00]} 4. Nxd4 {[%emt 0:00:00]} a6 {[%emt 0:00:00]} 5. Bd3 {[%emt 0:00:30]} Qc7 {[%emt 0:00:30]} 6. O-O {[%emt 0:00:00]} Nf6 {[%emt 0:02:30]} 7. Qe2 {[%emt 0:02:00]} d6 {[%emt 0:00:30]} 8. c4 {[%emt 0:02:30]} Nbd7 {[%emt 0:00:30]} 9. b3 {[%emt 0:01:30]} b6 {[%emt 0:01:30]} 10. Bb2 {[%emt 0:01:30]} Bb7 {[%emt 0:00:30]} 11. Nd2 {[%emt 0:00:30]} Be7 {[%emt 0:00:30]} 12. Rae1 {[%emt 0:04:30]} O-O {[%emt 0:04:30]} 13. f4 {[%emt 0:01:30]} Rad8 {[%emt 0:01:30]} 14. Rf3 {[%emt 0:01:30]} g6 {[%emt 0:03:30]} 15. Rg3 {[%emt 0:07:30]} Kh8 {[%emt 0:11:30]} 16. e5 {[%emt 0:05:30]} dxe5 {[%emt 0:02:30]} 17. fxe5 {[%emt 0:00:30]} Nh5 {[%emt 0:00:30]} 18. Rg4 {[%emt 0:00:30]} Nb8 {[%emt 0:11:30]} 19. N2f3 {[%emt 0:07:30]} Nc6 {[%emt 0:01:30]} 20. Rd1 {[%emt 0:02:30]} Rd7 {[%emt 0:01:30]} 21. Kh1 {[%emt 0:02:30]} Rfd8 {[%emt 0:01:30]} 22. Rf1 {[%emt 0:01:30]} Nxd4 {[%emt 0:01:30]} 23. Nxd4 {[%emt 0:02:30]} Bc5 {[%emt 0:08:30]} 24. Qe3 {[%emt 0:00:30]} b5 {[%emt 0:07:30]} 25. cxb5 {[%emt 0:02:30]} Qb6 {[%emt 0:01:30]} 26. bxa6 {[%emt 0:00:30]} Ba8 {[%emt 0:04:30]} 27. Qh6 {[%emt 0:00:30]} Bf8 {[%emt 0:02:30]} 28. Qc1 {[%emt 0:07:30]} Kg8 {[%emt 0:03:30]} 29. Be2 {[%emt 0:04:30]} Rxd4 {[%emt 0:01:30]} 30. Rxd4 {[%emt 0:00:30]} Rxd4 {[%emt 0:00:00]} 31. Bxd4 {[%emt 0:00:30]} Qxd4 {[%emt 0:01:00]} 32. Bxh5 {[%emt 0:00:00]} gxh5 {[%emt 0:01:30]} 33. Qg5+ {[%emt 0:01:00]} Bg7 {[%emt 0:00:30]} 34. Qxh5 {[%emt 0:00:00]} Qd7 {[%emt 0:00:30]} 35. Qe2 {[%emt 0:02:00]} Bd5 {[%emt 0:01:30]} 36. Rc1 {[%emt 0:01:30]} Bh6 {[%emt 0:00:30]} 37. Rb1 {[%emt 0:00:30]} Qe7 {[%emt 0:01:23]} 38. b4 {[%emt 0:00:30]} Qh4 {[%emt 0:00:00]} 39. Qe1 {[%emt 0:01:30]} Qd4 {[%emt 0:01:12]} 40. b5 {[%emt 0:01:30]} Qa4 {[%emt 0:07:55]} 41. Qg3+ {[%emt 0:02:30]} Kh8 {[%emt 0:02:06]} 42. Qf2 {[%emt 0:00:30]} Kg8 {[%emt 0:03:11]} 43. Rf1 {[%emt 0:01:30]} Qxb5 {[%emt 0:00:30]} 44. Qxf7+ {[%emt 0:00:30]} Kh8 {[%emt 0:00:30]} 45. Qf6+ {[%emt 0:00:30]} Kg8 {[%emt 0:00:30]} 46. Qd8+ {[%emt 0:00:00]} Kg7 {[%emt 0:00:00]} 47. Qf8+ {[%emt 0:00:00]} 1-0